[Event "EYCC Open-U12 2019"]
[Site "Bratislava"]
[Date "2019.08.06"]
[Round "5.11"]
[White "Tarhan, Adar"]
[Black "Lystsov, Leonid"]
[Result "0-1"]
[ECO "C06"]
[WhiteElo "1972"]
[BlackElo "2086"]
[Annotator "NA"]
[PlyCount "128"]
[EventDate "2019.08.02"]
[EventType "swiss"]
[EventCountry "SVK"]
[SourceTitle "playchess.com"]
[Source "ChessBase"]
[SourceQuality "1"]
[TimeControl "40/5400+30:1800+30"]

1. e4 {[%emt 0:00:00]} e6 {[%emt 0:00:00]} 2. d4 {[%emt 0:00:00]} d5 {[%emt 0:00:00]} 3. Nd2 {[%emt 0:00:00]} Nf6 {[%emt 0:00:00]} 4. e5 {[%emt 0:00:06]} Nfd7 {[%emt 0:00:05]} 5. Bd3 {[%emt 0:00:15]} c5 {[%emt 0:00:06]} 6. c3 {[%emt 0:00:03]} Nc6 {[%emt 0:00:04]} 7. Ne2 {[%emt 0:00:12]} cxd4 {[%emt 0:00:11]} 8. cxd4 {[%emt 0:00:11]} f6 {[%emt 0:00:06]} 9. exf6 {[%emt 0:01:30]} Qxf6 {[%emt 0:00:14]} 10. Nf3 {[%emt 0:03:42]} h6 {[%emt 0:01:24]} 11. O-O {[%emt 0:02:36]} Bd6 {[%emt 0:00:16]} 12. Ng3 {[%emt 0:01:47]} O-O {[%emt 0:00:23]} 13. Be3 {[%emt 0:09:22]} Rd8 {[%emt 0:01:19]} 14. Rc1 {[%emt 0:09:14]} Nf8 {[%emt 0:00:40]} 15. Bb1 {[%emt 0:02:37]} Bd7 {[%emt 0:01:04]} 16. a3 {[%emt 0:04:22]} Rac8 {[%emt 0:00:30]} 17. b4 {[%emt 0:03:53]} a6 {[%emt 0:00:31]} 18. Ne1 {[%emt 0:03:08]} Ne7 {[%emt 0:23:40]} 19. Nd3 {[%emt 0:03:19]} Rxc1 {[%emt 0:05:00]} 20. Qxc1 {[%emt 0:00:22]} Be8 {[%emt 0:00:20]} 21. f4 {[%emt 0:05:29]} Rc8 {[%emt 0:12:49]} 22. Qd2 {[%emt 0:02:10]} Bg6 {[%emt 0:01:02]} 23. Ne5 {[%emt 0:02:27]} Bxb1 {[%emt 0:00:38]} 24. Rxb1 {[%emt 0:00:03]} Nf5 {[%emt 0:11:27]} 25. Rc1 {[%emt 0:08:55]} Rxc1+ {[%emt 0:03:14]} 26. Qxc1 {[%emt 0:00:14]} Nxg3 {[%emt 0:00:20]} 27. hxg3 {[%emt 0:00:20]} Bxe5 {[%emt 0:00:19]} 28. dxe5 {[%emt 0:00:23]} Qd8 {[%emt 0:04:04]} 29. Qc5 {[%emt 0:05:07]} h5 {[%emt 0:20:00]} 30. a4 {[%emt 0:08:19]} Qd7 {[%emt 0:07:06]} 31. b5 {[%emt 0:01:26]} axb5 {[%emt 0:00:24]} 32. axb5 {[%emt 0:00:05]} Ng6 {[%emt 0:03:00]} 33. Kh2 {[%emt 0:04:32]} Kf7 {[%emt 0:01:16]} 34. Bd4 {[%emt 0:04:55]} Ne7 {[%emt 0:01:31]} 35. Bc3 {[%emt 0:04:13]} Nf5 {[%emt 0:01:47]} 36. b6 {[%emt 0:01:23]} d4 {[%emt 0:02:29]} 37. Bd2 {[%emt 0:01:49]} Ne7 {[%emt 0:00:35]} 38. Kh3 {[%emt 0:01:51]} Qd5 {[%emt 0:00:30]} 39. Qc7 {[%emt 0:01:21]} Qc6 {[%emt 0:00:20]} 40. Qd8 {[%emt 0:00:00]} Nd5 {[%emt 0:00:00]} 41. Qh8 {[%emt 0:02:26]} Nxb6 {[%emt 0:11:13]} 42. Qxh5+ {[%emt 0:01:07]} Kg8 {[%emt 0:01:07]} 43. Qg5 {[%emt 0:04:25]} Qd7 {[%emt 0:06:01]} 44. Kh2 {[%emt 0:00:46]} Nc4 {[%emt 0:02:10]} 45. Bb4 {[%emt 0:03:14]} d3 {[%emt 0:03:12]} 46. f5 {[%emt 0:01:58]} d2 {[%emt 0:05:34]} 47. f6 {[%emt 0:02:39]} d1=Q {[%emt 0:04:50]} 48. Be7 {[%emt 0:00:09]} Qxe7 {[%emt 0:00:33]} 49. fxe7 {[%emt 0:00:06]} Qd7 {[%emt 0:00:30]} 50. Qf4 {[%emt 0:00:11]} Qxe7 {[%emt 0:00:32]} 51. Qxc4 {[%emt 0:00:04]} Qd7 {[%emt 0:00:29]} 52. g4 {[%emt 0:05:19]} Qd5 {[%emt 0:00:31]} 53. Qf4 {[%emt 0:01:05]} b5 {[%emt 0:00:29]} 54. g5 {[%emt 0:00:05]} Qd3 {[%emt 0:00:19]} 55. Qb4 {[%emt 0:01:57]} Kf7 {[%emt 0:00:17]} 56. Qc5 {[%emt 0:01:02]} Kg6 {[%emt 0:00:25]} 57. Qe7 {[%emt 0:00:30]} Qd5 {[%emt 0:00:47]} 58. Qc7 {[%emt 0:00:19]} b4 {[%emt 0:00:41]} 59. Qc2+ {[%emt 0:01:32]} Kxg5 {[%emt 0:00:20]} 60. Qc1+ {[%emt 0:00:05]} Kf5 {[%emt 0:00:26]} 61. Qb1+ {[%emt 0:01:15]} Qe4 {[%emt 0:00:17]} 62. Qf1+ {[%emt 0:00:17]} Qf4+ {[%emt 0:00:20]} 63. g3 {[%emt 0:00:05]} Qxf1 {[%emt 0:00:15]} 64. g4+ {[%emt 0:00:02]} Kxe5 {[%emt 0:00:11]} 0-1

[Event "EYCC Open-U12 2019"]
[Site "Bratislava"]
[Date "2019.08.06"]
[Round "5.12"]
[White "Habans Aguerrea, Javier"]
[Black "Pidluznij, Gleb"]
[Result "1/2-1/2"]
[ECO "A20"]
[WhiteElo "2083"]
[BlackElo "1947"]
[Annotator "NA"]
[PlyCount "106"]
[EventDate "2019.08.02"]
[EventType "swiss"]
[EventCountry "SVK"]
[SourceTitle "playchess.com"]
[Source "ChessBase"]
[SourceQuality "1"]
[TimeControl "40/5400+30:1800+30"]

1. c4 {[%emt 0:00:00]} e5 {[%emt 0:00:00]} 2. g3 {[%emt 0:00:00]} Nf6 {[%emt 0:00:34]} 3. Bg2 {[%emt 0:00:00]} d5 {[%emt 0:00:53]} 4. cxd5 {[%emt 0:00:00]} Nxd5 {[%emt 0:00:42]} 5. Nf3 {[%emt 0:00:10]} Nc6 {[%emt 0:03:47]} 6. O-O {[%emt 0:00:11]} Nb6 {[%emt 0:01:53]} 7. b3 {[%emt 0:00:13]} g6 {[%emt 0:19:19]} 8. Nc3 {[%emt 0:11:21]} Bg7 {[%emt 0:04:00]} 9. Ba3 {[%emt 0:02:26]} Bf8 {[%emt 0:11:17]} 10. Bxf8 {[%emt 0:04:04]} Kxf8 {[%emt 0:01:25]} 11. Qc2 {[%emt 0:01:24]} Kg7 {[%emt 0:10:39]} 12. Qb2 {[%emt 0:02:07]} Qe7 {[%emt 0:06:10]} 13. Rfd1 {[%emt 0:03:18]} Rd8 {[%emt 0:03:28]} 14. Rac1 {[%emt 0:13:38]} Rb8 {[%emt 0:06:00]} 15. Ne4 {[%emt 0:02:06]} f6 {[%emt 0:06:24]} 16. d4 {[%emt 0:07:14]} exd4 {[%emt 0:05:18]} 17. Nxd4 {[%emt 0:00:02]} Qe5 {[%emt 0:00:57]} 18. f4 {[%emt 0:06:19]} Qe7 {[%emt 0:05:55]} 19. Nxc6 {[%emt 0:00:24]} Rxd1+ {[%emt 0:00:23]} 20. Rxd1 {[%emt 0:00:01]} bxc6 {[%emt 0:00:04]} 21. Qc3 {[%emt 0:12:03]} Nd5 {[%emt 0:03:42]} 22. Qc5 {[%emt 0:06:25]} Qxc5+ {[%emt 0:04:25]} 23. Nxc5 {[%emt 0:00:01]} Ne7 {[%emt 0:00:42]} 24. e4 {[%emt 0:04:03]} Rb5 {[%emt 0:00:18]} 25. Rc1 {[%emt 0:00:08]} a5 {[%emt 0:00:45]} 26. Kf2 {[%emt 0:00:46]} Kf7 {[%emt 0:00:51]} 27. Bf1 {[%emt 0:01:09]} Rb6 {[%emt 0:00:16]} 28. Bc4+ {[%emt 0:00:21]} Ke8 {[%emt 0:00:21]} 29. Rd1 {[%emt 0:01:48]} Bg4 {[%emt 0:01:05]} 30. Rd4 {[%emt 0:02:02]} Nc8 {[%emt 0:01:37]} 31. e5 {[%emt 0:02:36]} fxe5 {[%emt 0:01:12]} 32. fxe5 {[%emt 0:00:01]} h5 {[%emt 0:00:12]} 33. Ke3 {[%emt 0:08:46]} Ne7 {[%emt 0:00:47]} 34. Kf4 {[%emt 0:00:05]} Nf5 {[%emt 0:00:12]} 35. Rd2 {[%emt 0:01:07]} Rb8 {[%emt 0:00:54]} 36. Kg5 {[%emt 0:00:29]} Ne3 {[%emt 0:00:35]} 37. Be2 {[%emt 0:05:50]} Bxe2 {[%emt 0:00:41]} 38. Rxe2 {[%emt 0:00:01]} Nd5 {[%emt 0:00:15]} 39. Kxg6 {[%emt 0:02:39]} h4 {[%emt 0:00:09]} 40. Rf2 {[%emt 0:00:00]} hxg3 {[%emt 0:00:00]} 41. hxg3 {[%emt 0:01:59]} Rb4 {[%emt 0:00:22]} 42. Kf5 {[%emt 0:04:18]} Ke7 {[%emt 0:00:14]} 43. Rf3 {[%emt 0:02:28]} Rb8 {[%emt 0:03:19]} 44. Ne6 {[%emt 0:06:43]} Kf7 {[%emt 0:06:05]} 45. Nd4 {[%emt 0:02:00]} Ne7+ {[%emt 0:03:06]} 46. Ke4+ {[%emt 0:00:20]} Kg8 {[%emt 0:00:09]} 47. Rf6 {[%emt 0:01:22]} Rb4 {[%emt 0:00:17]} 48. a3 {[%emt 0:00:47]} Rb8 {[%emt 0:00:14]} 49. Re6 {[%emt 0:00:49]} c5 {[%emt 0:00:32]} 50. Nf3 {[%emt 0:02:08]} Kf8 {[%emt 0:00:17]} 51. Nd2 {[%emt 0:00:40]} Rd8 {[%emt 0:00:10]} 52. Nc4 {[%emt 0:03:07]} Rd4+ {[%emt 0:00:11]} 53. Ke3 {[%emt 0:00:23]} Nd5+ {[%emt 0:01:33]} 1/2-1/2

[Event "EYCC Open-U12 2019"]
[Site "Bratislava"]
[Date "2019.08.06"]
[Round "5.13"]
[White "Foerster-Yialamas, Lucas"]
[Black "Milanovic, Marko"]
[Result "0-1"]
[ECO "C91"]
[WhiteElo "2028"]
[BlackElo "1814"]
[Annotator "NA"]
[PlyCount "114"]
[EventDate "2019.08.02"]
[EventType "swiss"]
[EventCountry "SVK"]
[SourceTitle "playchess.com"]
[Source "ChessBase"]
[SourceQuality "1"]
[TimeControl "40/5400+30:1800+30"]

1. e4 {[%emt 0:00:00]} e5 {[%emt 0:00:00]} 2. Nf3 {[%emt 0:00:08]} Nc6 {[%emt 0:00:00]} 3. Bb5 {[%emt 0:00:25]} a6 {[%emt 0:00:00]} 4. Ba4 {[%emt 0:00:22]} Nf6 {[%emt 0:00:09]} 5. O-O {[%emt 0:00:52]} Be7 {[%emt 0:00:08]} 6. Re1 {[%emt 0:00:25]} b5 {[%emt 0:00:07]} 7. Bb3 {[%emt 0:00:07]} d6 {[%emt 0:00:12]} 8. c3 {[%emt 0:00:22]} O-O {[%emt 0:00:21]} 9. d4 {[%emt 0:00:10]} Bg4 {[%emt 0:00:46]} 10. Be3 {[%emt 0:00:45]} Na5 {[%emt 0:02:16]} 11. Bc2 {[%emt 0:00:06]} Nc4 {[%emt 0:04:17]} 12. Bc1 {[%emt 0:00:05]} c5 {[%emt 0:03:48]} 13. b3 {[%emt 0:01:14]} Nb6 {[%emt 0:07:31]} 14. Nbd2 {[%emt 0:01:00]} Qc7 {[%emt 0:01:24]} 15. Bb2 {[%emt 0:02:37]} Rfd8 {[%emt 0:06:22]} 16. h3 {[%emt 0:01:41]} Be6 {[%emt 0:01:43]} 17. d5 {[%emt 0:05:26]} Bd7 {[%emt 0:01:20]} 18. Nf1 {[%emt 0:00:54]} a5 {[%emt 0:06:45]} 19. Ne3 {[%emt 0:07:51]} a4 {[%emt 0:05:25]} 20. Qe2 {[%emt 0:05:03]} Nh5 {[%emt 0:07:21]} 21. c4 {[%emt 0:15:03]} Nf4 {[%emt 0:03:07]} 22. Qf1 {[%emt 0:02:59]} b4 {[%emt 0:05:49]} 23. Nf5 {[%emt 0:01:46]} Bf8 {[%emt 0:03:22]} 24. g3 {[%emt 0:03:20]} Ng6 {[%emt 0:01:41]} 25. Kh2 {[%emt 0:03:12]} axb3 {[%emt 0:10:25]} 26. axb3 {[%emt 0:00:16]} Rxa1 {[%emt 0:05:40]} 27. Rxa1 {[%emt 0:01:39]} Ra8 {[%emt 0:00:34]} 28. Rxa8 {[%emt 0:03:22]} Nxa8 {[%emt 0:00:01]} 29. Qc1 {[%emt 0:02:13]} Qa5 {[%emt 0:05:04]} 30. Bb1 {[%emt 0:00:13]} Qd8 {[%emt 0:01:12]} 31. Kg2 {[%emt 0:11:41]} Nc7 {[%emt 0:01:18]} 32. Qc2 {[%emt 0:01:59]} Ne8 {[%emt 0:02:02]} 33. Bc1 {[%emt 0:00:25]} Qa5 {[%emt 0:00:47]} 34. h4 {[%emt 0:03:29]} Ne7 {[%emt 0:05:21]} 35. Nh2 {[%emt 0:15:49]} Nxf5 {[%emt 0:02:21]} 36. exf5 {[%emt 0:00:12]} g6 {[%emt 0:04:14]} 37. fxg6 {[%emt 0:02:19]} hxg6 {[%emt 0:00:01]} 38. g4 {[%emt 0:00:47]} f5 {[%emt 0:03:52]} 39. f3 {[%emt 0:03:50]} Qd8 {[%emt 0:00:50]} 40. Bg5 {[%emt 0:00:00]} Be7 {[%emt 0:00:00]} 41. Bxe7 {[%emt 0:01:18]} Qxe7 {[%emt 0:01:00]} 42. Kh3 {[%emt 0:03:03]} Nf6 {[%emt 0:07:45]} 43. Qd2 {[%emt 0:10:34]} fxg4+ {[%emt 0:07:17]} 44. Nxg4 {[%emt 0:02:03]} e4 {[%emt 0:05:37]} 45. Kg3 {[%emt 0:04:33]} Nh5+ {[%emt 0:03:00]} 46. Kh3 {[%emt 0:00:44]} Qe5 {[%emt 0:03:38]} 47. Qh2 {[%emt 0:02:06]} exf3 {[%emt 0:02:52]} 48. Qg1 {[%emt 0:04:34]} Nf4+ {[%emt 0:00:56]} 49. Kh2 {[%emt 0:00:28]} Bxg4 {[%emt 0:03:33]} 50. Qxg4 {[%emt 0:00:16]} f2 {[%emt 0:00:59]} 51. Bxg6 {[%emt 0:04:18]} f1=Q {[%emt 0:00:32]} 52. Bf7+ {[%emt 0:00:46]} Kxf7 {[%emt 0:00:22]} 53. Qd7+ {[%emt 0:00:24]} Kg6 {[%emt 0:00:27]} 54. Qg4+ {[%emt 0:01:22]} Kf6 {[%emt 0:00:26]} 55. Qg5+ {[%emt 0:00:40]} Qxg5 {[%emt 0:00:15]} 56. hxg5+ {[%emt 0:00:07]} Kxg5 {[%emt 0:00:12]} 57. Kg3 {[%emt 0:00:06]} Qg2# {[%emt 0:00:06]} 0-1

[Event "EYCC Open-U12 2019"]
[Site "Bratislava"]
[Date "2019.08.06"]
[Round "5.14"]
[White "Kuhn, Clement"]
[Black "Pavesi, Brando"]
[Result "1-0"]
[ECO "B13"]
[WhiteElo "1979"]
[BlackElo "2109"]
[Annotator "NA"]
[PlyCount "61"]
[EventDate "2019.08.02"]
[EventType "swiss"]
[EventCountry "SVK"]
[SourceTitle "playchess.com"]
[Source "ChessBase"]
[SourceQuality "1"]
[TimeControl "40/5400+30:1800+30"]

1. e4 {[%emt 0:00:00]} c6 {[%emt 0:01:02]} 2. d4 {[%emt 0:00:00]} d5 {[%emt 0:00:16]} 3. exd5 {[%emt 0:00:00]} cxd5 {[%emt 0:00:11]} 4. Bf4 {[%emt 0:00:00]} Nc6 {[%emt 0:01:59]} 5. c3 {[%emt 0:00:01]} Nf6 {[%emt 0:01:55]} 6. Nd2 {[%emt 0:00:08]} Bf5 {[%emt 0:09:26]} 7. Ngf3 {[%emt 0:00:24]} e6 {[%emt 0:05:12]} 8. Qb3 {[%emt 0:00:24]} Qc8 {[%emt 0:00:25]} 9. Nh4 {[%emt 0:01:18]} Bg4 {[%emt 0:04:48]} 10. h3 {[%emt 0:00:07]} Bh5 {[%emt 0:00:08]} 11. g4 {[%emt 0:00:03]} Bg6 {[%emt 0:00:21]} 12. Nxg6 {[%emt 0:00:04]} hxg6 {[%emt 0:00:07]} 13. Be2 {[%emt 0:00:07]} Be7 {[%emt 0:05:21]} 14. Bg3 {[%emt 0:02:25]} a6 {[%emt 0:10:32]} 15. Kf1 {[%emt 0:10:13]} b5 {[%emt 0:12:24]} 16. Kg2 {[%emt 0:03:30]} Na5 {[%emt 0:04:21]} 17. Qc2 {[%emt 0:02:03]} Qb7 {[%emt 0:04:40]} 18. Rae1 {[%emt 0:15:02]} Rc8 {[%emt 0:08:39]} 19. Bd3 {[%emt 0:17:59]} g5 {[%emt 0:08:24]} 20. Nf3 {[%emt 0:03:04]} Nd7 {[%emt 0:01:06]} 21. Qc1 {[%emt 0:11:15]} Bf6 {[%emt 0:09:38]} 22. b4 Nc6 23. Qd2 Ne7 24. Nxg5 Qc6 25. Rc1 e5 26. Rhe1 e4 27. Nxe4 dxe4 28. Bxe4 Qb6 29. g5 Qe6 30. h4 Bxg5 31. Qxg5 1-0

[Event "EYCC Open-U12 2019"]
[Site "Bratislava"]
[Date "2019.08.06"]
[Round "5.15"]
[White "Saveljev, Ivan"]
[Black "Labruyere, Roger"]
[Result "1/2-1/2"]
[ECO "B52"]
[WhiteElo "2040"]
[BlackElo "1897"]
[Annotator "NA"]
[PlyCount "105"]
[EventDate "2019.08.02"]
[EventType "swiss"]
[EventCountry "SVK"]
[SourceTitle "playchess.com"]
[Source "ChessBase"]
[SourceQuality "1"]
[TimeControl "40/5400+30:1800+30"]

1. e4 {[%emt 0:00:00]} c5 {[%emt 0:00:00]} 2. Nf3 {[%emt 0:00:00]} d6 {[%emt 0:00:00]} 3. Bb5+ {[%emt 0:00:00]} Bd7 {[%emt 0:00:09]} 4. Bxd7+ {[%emt 0:02:25]} Qxd7 {[%emt 0:00:13]} 5. c4 {[%emt 0:00:58]} Nc6 {[%emt 0:01:17]} 6. Nc3 {[%emt 0:00:29]} g6 {[%emt 0:00:42]} 7. d4 {[%emt 0:00:46]} cxd4 {[%emt 0:00:26]} 8. Nxd4 {[%emt 0:00:09]} Bg7 {[%emt 0:00:34]} 9. Be3 {[%emt 0:00:20]} Nf6 {[%emt 0:00:47]} 10. f3 {[%emt 0:00:15]} O-O {[%emt 0:01:30]} 11. O-O {[%emt 0:00:41]} Rac8 {[%emt 0:00:55]} 12. b3 {[%emt 0:03:36]} a6 {[%emt 0:02:37]} 13. Rc1 {[%emt 0:03:04]} e6 {[%emt 0:04:52]} 14. Qd2 {[%emt 0:06:44]} Rfd8 {[%emt 0:00:34]} 15. Rfd1 {[%emt 0:02:00]} Qe7 {[%emt 0:13:57]} 16. Nxc6 {[%emt 0:07:17]} bxc6 {[%emt 0:09:04]} 17. Na4 {[%emt 0:05:57]} c5 {[%emt 0:08:25]} 18. Qa5 {[%emt 0:03:03]} Nd7 {[%emt 0:09:12]} 19. Qxa6 {[%emt 0:17:45]} Ne5 {[%emt 0:04:48]} 20. Qa5 {[%emt 0:04:36]} Nc6 {[%emt 0:01:48]} 21. Qd2 {[%emt 0:00:28]} Nd4 {[%emt 0:00:13]} 22. Nc3 {[%emt 0:01:19]} Qb7 {[%emt 0:06:01]} 23. Ne2 {[%emt 0:01:41]} d5 {[%emt 0:01:27]} 24. cxd5 {[%emt 0:13:15]} exd5 {[%emt 0:00:10]} 25. exd5 {[%emt 0:00:44]} Rxd5 {[%emt 0:01:45]} 26. Nxd4 {[%emt 0:06:12]} cxd4 {[%emt 0:05:26]} 27. Rxc8+ {[%emt 0:03:26]} Qxc8 {[%emt 0:00:02]} 28. Rc1 {[%emt 0:00:48]} Qe6 {[%emt 0:01:17]} 29. Bf2 {[%emt 0:00:24]} h5 {[%emt 0:00:33]} 30. Qd3 {[%emt 0:00:43]} Qd6 {[%emt 0:02:30]} 31. a4 {[%emt 0:07:10]} Qf4 {[%emt 0:03:02]} 32. Rc8+ {[%emt 0:01:28]} Kh7 {[%emt 0:00:02]} 33. g3 {[%emt 0:02:06]} Qf6 {[%emt 0:02:39]} 34. Rc4 {[%emt 0:00:28]} Qd6 {[%emt 0:04:26]} 35. b4 {[%emt 0:00:58]} h4 {[%emt 0:00:04]} 36. b5 {[%emt 0:01:08]} hxg3 {[%emt 0:01:01]} 37. hxg3 {[%emt 0:00:19]} Rh5 {[%emt 0:00:48]} 38. Rc6 {[%emt 0:01:40]} Qd7 {[%emt 0:01:16]} 39. g4 {[%emt 0:00:22]} Rh6 {[%emt 0:01:52]} 40. Be3 {[%emt 0:00:00]} Rh4 {[%emt 0:00:00]} 41. Bf2 {[%emt 0:03:46]} Rh6 {[%emt 0:01:53]} 42. Bg3 {[%emt 0:04:59]} Qd5 {[%emt 0:01:14]} 43. Bf4 {[%emt 0:08:15]} Rh3 {[%emt 0:02:03]} 44. Kg2 {[%emt 0:02:49]} Rh4 {[%emt 0:00:51]} 45. Bg3 {[%emt 0:02:01]} Rxg4 {[%emt 0:00:29]} 46. Qc4 {[%emt 0:00:36]} Rxg3+ {[%emt 0:01:44]} 47. Kxg3 {[%emt 0:00:06]} Qg5+ {[%emt 0:02:08]} 48. Kf2 {[%emt 0:02:22]} Qe3+ {[%emt 0:02:28]} 49. Kg2 {[%emt 0:00:31]} Qd2+ {[%emt 0:02:29]} 50. Kf1 {[%emt 0:00:08]} Qd1+ {[%emt 0:01:05]} 51. Kf2 {[%emt 0:00:08]} d3 {[%emt 0:01:52]} 52. Qh4+ {[%emt 0:05:35]} Bh6 {[%emt 0:00:07]} 53. Qf6 {[%emt 0:00:38]} 1/2-1/2

[Event "EYCC Open-U12 2019"]
[Site "Bratislava"]
[Date "2019.08.06"]
[Round "5.16"]
[White "Bakiev, Diyor"]
[Black "Codreanu, Marius"]
[Result "1-0"]
[ECO "B14"]
[WhiteElo "2121"]
[BlackElo "1834"]
[Annotator "NA"]
[PlyCount "61"]
[EventDate "2019.08.02"]
[EventType "swiss"]
[EventCountry "SVK"]
[SourceTitle "playchess.com"]
[Source "ChessBase"]
[SourceQuality "1"]
[TimeControl "40/5400+30:1800+30"]

1. e4 {[%emt 0:00:00]} c6 {[%emt 0:00:00]} 2. d4 {[%emt 0:00:00]} d5 {[%emt 0:00:00]} 3. exd5 {[%emt 0:00:00]} cxd5 {[%emt 0:00:00]} 4. c4 {[%emt 0:00:19]} Nf6 {[%emt 0:00:00]} 5. Nc3 {[%emt 0:00:14]} g6 {[%emt 0:00:00]} 6. Qb3 {[%emt 0:00:20]} e6 {[%emt 0:00:00]} 7. Nf3 {[%emt 0:04:22]} Bg7 {[%emt 0:01:50]} 8. Bg5 {[%emt 0:02:10]} O-O {[%emt 0:01:30]} 9. cxd5 {[%emt 0:06:47]} exd5 {[%emt 0:00:09]} 10. Bxf6 {[%emt 0:17:42]} Bxf6 {[%emt 0:00:05]} 11. Be2 {[%emt 0:02:12]} Nc6 {[%emt 0:13:04]} 12. Rd1 {[%emt 0:08:03]} Be6 {[%emt 0:13:00]} 13. Qxb7 {[%emt 0:16:11]} Qd6 {[%emt 0:06:18]} 14. Qb3 {[%emt 0:06:39]} Rab8 {[%emt 0:01:55]} 15. Nb5 {[%emt 0:04:25]} Qe7 {[%emt 0:18:10]} 16. Qc3 {[%emt 0:01:38]} Rfc8 {[%emt 0:03:12]} 17. Qd2 {[%emt 0:02:21]} Nb4 {[%emt 0:01:56]} 18. Nc3 {[%emt 0:00:35]} Nc6 {[%emt 0:05:37]} 19. O-O {[%emt 0:01:14]} Qb4 {[%emt 0:02:36]} 20. Ba6 {[%emt 0:06:41]} Rc7 {[%emt 0:03:07]} 21. Qf4 {[%emt 0:00:56]} Bd8 {[%emt 0:04:57]} 22. Rd2 {[%emt 0:01:08]} Qa5 {[%emt 0:01:43]} 23. Bd3 {[%emt 0:02:36]} Rcb7 {[%emt 0:01:42]} 24. Rb1 {[%emt 0:01:42]} Qxc3 {[%emt 0:06:45]} 25. bxc3 {[%emt 0:00:09]} Rxb1+ {[%emt 0:00:02]} 26. Bf1 {[%emt 0:00:10]} Ra1 {[%emt 0:00:09]} 27. Re2 {[%emt 0:01:57]} Rbb1 {[%emt 0:00:07]} 28. Nd2 {[%emt 0:04:58]} Rb6 {[%emt 0:05:47]} 29. Nb3 {[%emt 0:00:46]} a5 {[%emt 0:01:38]} 30. Nxa1 {[%emt 0:00:08]} a4 {[%emt 0:00:28]} 31. Nc2 {[%emt 0:00:16]} 1-0

[Event "EYCC Open-U12 2019"]
[Site "Bratislava"]
[Date "2019.08.06"]
[Round "5.17"]
[White "Ciric, Pavle"]
[Black "Rotunno, Flavio"]
[Result "1-0"]
[ECO "B31"]
[WhiteElo "1987"]
[BlackElo "1819"]
[Annotator "NA"]
[PlyCount "111"]
[EventDate "2019.08.02"]
[EventType "swiss"]
[EventCountry "SVK"]
[SourceTitle "playchess.com"]
[Source "ChessBase"]
[SourceQuality "1"]
[TimeControl "40/5400+30:1800+30"]

1. e4 {[%emt 0:00:00]} c5 {[%emt 0:00:00]} 2. Nf3 {[%emt 0:00:00]} Nc6 {[%emt 0:00:00]} 3. Bb5 {[%emt 0:00:00]} g6 {[%emt 0:01:41]} 4. O-O {[%emt 0:00:00]} Bg7 {[%emt 0:00:06]} 5. c3 {[%emt 0:00:09]} Nf6 {[%emt 0:07:34]} 6. Re1 {[%emt 0:06:32]} O-O {[%emt 0:03:35]} 7. d4 {[%emt 0:00:08]} cxd4 {[%emt 0:04:00]} 8. cxd4 {[%emt 0:00:04]} d5 {[%emt 0:08:25]} 9. e5 {[%emt 0:02:09]} Ne8 {[%emt 0:06:34]} 10. Nc3 {[%emt 0:02:55]} Bg4 {[%emt 0:01:22]} 11. Bxc6 {[%emt 0:03:54]} bxc6 {[%emt 0:01:54]} 12. Be3 {[%emt 0:00:43]} Nc7 {[%emt 0:05:25]} 13. Na4 {[%emt 0:18:59]} Ne6 {[%emt 0:01:41]} 14. Rc1 {[%emt 0:00:17]} Qd7 {[%emt 0:04:57]} 15. h3 {[%emt 0:07:54]} Bxf3 {[%emt 0:00:15]} 16. Qxf3 {[%emt 0:00:03]} Rfc8 {[%emt 0:01:59]} 17. Nc5 {[%emt 0:00:31]} Nxc5 {[%emt 0:00:07]} 18. Rxc5 {[%emt 0:00:02]} Bf8 {[%emt 0:05:19]} 19. Rec1 {[%emt 0:01:58]} Rc7 {[%emt 0:02:34]} 20. a3 {[%emt 0:12:10]} a5 {[%emt 0:10:33]} 21. Bd2 {[%emt 0:02:33]} a4 {[%emt 0:00:28]} 22. Qc3 {[%emt 0:13:01]} Ra6 {[%emt 0:09:13]} 23. Qd3 {[%emt 0:00:51]} Rca7 {[%emt 0:10:07]} 24. Qc2 {[%emt 0:02:38]} Rc7 {[%emt 0:01:28]} 25. Ra5 {[%emt 0:04:07]} Rca7 {[%emt 0:00:16]} 26. Qxa4 {[%emt 0:03:02]} Rxa5 {[%emt 0:00:50]} 27. Bxa5 {[%emt 0:00:03]} e6 {[%emt 0:03:29]} 28. b4 {[%emt 0:00:31]} Ra6 {[%emt 0:01:00]} 29. Qc2 {[%emt 0:01:04]} Be7 {[%emt 0:02:40]} 30. Qd3 {[%emt 0:00:33]} Qb7 {[%emt 0:00:09]} 31. Bc7 {[%emt 0:05:02]} Ra8 {[%emt 0:04:41]} 32. Bd6 {[%emt 0:00:04]} Bxd6 {[%emt 0:00:17]} 33. exd6 {[%emt 0:00:03]} Qd7 {[%emt 0:00:14]} 34. Qg3 {[%emt 0:00:59]} Rd8 {[%emt 0:00:03]} 35. Qc3 {[%emt 0:00:48]} Qxd6 {[%emt 0:00:16]} 36. Qxc6 {[%emt 0:00:02]} Qxc6 {[%emt 0:00:16]} 37. Rxc6 {[%emt 0:00:04]} Ra8 {[%emt 0:00:03]} 38. Rc3 {[%emt 0:00:02]} Kf8 {[%emt 0:00:21]} 39. Kf1 {[%emt 0:00:13]} Ke7 {[%emt 0:00:07]} 40. Ke2 {[%emt 0:00:00]} Kd6 {[%emt 0:00:00]} 41. Kd3 {[%emt 0:01:39]} f6 {[%emt 0:00:56]} 42. f4 {[%emt 0:00:15]} g5 {[%emt 0:00:08]} 43. fxg5 {[%emt 0:00:40]} e5 {[%emt 0:01:45]} 44. gxf6 {[%emt 0:00:12]} e4+ {[%emt 0:00:06]} 45. Ke3 {[%emt 0:00:04]} Rf8 {[%emt 0:00:04]} 46. b5 {[%emt 0:00:04]} Rg8 {[%emt 0:01:54]} 47. g4 {[%emt 0:01:38]} h5 {[%emt 0:01:54]} 48. Kf4 {[%emt 0:00:44]} hxg4 {[%emt 0:00:07]} 49. hxg4 {[%emt 0:00:04]} Rg6 {[%emt 0:01:26]} 50. g5 {[%emt 0:00:10]} Rg8 {[%emt 0:00:32]} 51. Kf5 {[%emt 0:00:55]} Rb8 {[%emt 0:00:37]} 52. g6 {[%emt 0:01:32]} e3 {[%emt 0:00:29]} 53. Rxe3 {[%emt 0:00:06]} Rb7 {[%emt 0:01:07]} 54. g7 {[%emt 0:00:06]} Rf7 {[%emt 0:00:12]} 55. g8=Q {[%emt 0:00:41]} Rg7 {[%emt 0:00:11]} 56. Re6+ {[%emt 0:00:06]} 1-0